[Event "ESTCC-50 2025"]
[Site "Swidnica"]
[Date "2025.04.10"]
[Round "6.10"]
[White "Szmyd, Marek"]
[Black "Fletcher, John"]
[Result "1/2-1/2"]
[Annotator "NA"]
[ECO "B33"]
[WhiteElo "1900"]
[BlackElo "1989"]
[PlyCount "114"]
[EventDate "2025.04.05"]
[EventType "team-tourn"]
[EventCountry "POL"]
[SourceTitle "playchess.com"]
[Source "ChessBase"]
[SourceQuality "1"]
[WhiteTeam "Poland"]
[BlackTeam "Wales"]
[WhiteTeamCountry "POL"]
[BlackTeamCountry "WLS"]
[TimeControl "40/5400+30:1800+30"]

1. e4 {[%emt 0:00:04]} c5 {[%emt 0:00:10]} 2. Nf3 {[%emt 0:00:10]} Nc6 {[%emt 0:00:16]} 3. d4 {[%emt 0:00:19]} cxd4 {[%emt 0:00:08]} 4. Nxd4 {[%emt 0:00:09]} Nf6 {[%emt 0:00:12]} 5. Nc3 {[%emt 0:00:07]} e5 {[%emt 0:00:11]} 6. Ndb5 {[%emt 0:00:31]} d6 {[%emt 0:00:09]} 7. Bg5 {[%emt 0:03:29]} a6 {[%emt 0:00:28]} 8. Na3 {[%emt 0:00:17]} b5 {[%emt 0:00:11]} 9. Nd5 {[%emt 0:00:10]} Be7 {[%emt 0:00:13]} 10. Bxf6 {[%emt 0:00:12]} Bxf6 {[%emt 0:00:08]} 11. c3 {[%emt 0:04:52]} Ne7 {[%emt 0:02:13]} 12. Nc2 {[%emt 0:07:36]} Nxd5 {[%emt 0:05:09]} 13. Qxd5 {[%emt 0:03:28]} Rb8 {[%emt 0:00:13]} 14. Ne3 {[%emt 0:11:09]} O-O {[%emt 0:11:51]} 15. Be2 {[%emt 0:11:39]} Bg5 {[%emt 0:01:28]} 16. Qd3 {[%emt 0:02:42]} Bxe3 {[%emt 0:01:08]} 17. Qxe3 {[%emt 0:00:03]} f5 {[%emt 0:02:14]} 18. exf5 {[%emt 0:00:25]} Bxf5 {[%emt 0:05:37]} 19. O-O {[%emt 0:01:23]} Qb6 {[%emt 0:05:35]} 20. Rfd1 {[%emt 0:07:26]} Qxe3 {[%emt 0:04:36]} 21. fxe3 {[%emt 0:00:03]} Rb6 {[%emt 0:03:13]} 22. Rd2 {[%emt 0:04:46]} Be4 {[%emt 0:07:34]} 23. a4 {[%emt 0:14:31]} d5 {[%emt 0:05:45]} 24. axb5 {[%emt 0:01:34]} axb5 {[%emt 0:00:11]} 25. Ra5 {[%emt 0:07:39]} Rfb8 {[%emt 0:03:14]} 26. Bd3 {[%emt 0:02:05]} Bxd3 {[%emt 0:02:54]} 27. Rxd3 {[%emt 0:00:02]} Rd8 {[%emt 0:02:54]} 28. e4 {[%emt 0:02:57]} d4 {[%emt 0:00:14]} 29. Kf2 {[%emt 0:02:05]} Rf8+ {[%emt 0:08:25]} 30. Rf3 {[%emt 0:03:52]} dxc3 {[%emt 0:02:51]} 31. Rxf8+ {[%emt 0:01:59]} Kxf8 {[%emt 0:00:13]} 32. bxc3 {[%emt 0:00:01]} Kf7 {[%emt 0:00:58]} 33. Ke3 {[%emt 0:00:53]} Kf6 {[%emt 0:00:41]} 34. Ra2 {[%emt 0:04:17]} b4 {[%emt 0:04:17]} 35. Rb2 {[%emt 0:00:57]} b3 {[%emt 0:00:53]} 36. c4 {[%emt 0:00:43]} Kg5 {[%emt 0:01:43]} 37. g3 {[%emt 0:03:10]} Kg4 {[%emt 0:05:36]} 38. Kd3 {[%emt 0:00:07]} Rd6+ {[%emt 0:07:50]} 39. Kc3 {[%emt 0:00:01]} Kf3 {[%emt 0:00:12]} 40. c5 {[%emt 0:00:00]} Rd4 {[%emt 0:00:00]} 41. Rxb3 {[%emt 0:07:05]} Kxe4 {[%emt 0:06:18]} 42. Rb7 {[%emt 0:03:46]} Kd5 {[%emt 0:08:43]} 43. Rxg7 {[%emt 0:00:20]} Kxc5 {[%emt 0:00:56]} 44. Rxh7 {[%emt 0:00:13]} Kd6 {[%emt 0:00:03]} 45. Rf7 {[%emt 0:01:28]} Ke6 {[%emt 0:00:36]} 46. Rf2 {[%emt 0:00:08]} Ra4 {[%emt 0:04:01]} 47. Kd3 {[%emt 0:00:57]} e4+ {[%emt 0:00:04]} 48. Ke3 {[%emt 0:01:48]} Ke5 {[%emt 0:00:03]} 49. Rb2 {[%emt 0:05:06]} Ra3+ {[%emt 0:00:13]} 50. Kf2 {[%emt 0:02:49]} Rf3+ {[%emt 0:04:47]} 51. Kg2 {[%emt 0:05:35]} Kd4 {[%emt 0:01:53]} 52. Rb4+ {[%emt 0:00:58]} Ke3 {[%emt 0:00:16]} 53. h4 {[%emt 0:04:16]} Rf2+ {[%emt 0:00:18]} 54. Kh3 {[%emt 0:00:02]} Kf3 {[%emt 0:00:30]} 55. Rb7 {[%emt 0:02:02]} e3 {[%emt 0:04:05]} 56. Rf7+ {[%emt 0:00:26]} Ke2 {[%emt 0:00:02]} 57. Re7 {[%emt 0:00:12]} Kf3 {[%emt 0:00:30]} 1/2-1/2

[Event "ESTCC-50 2025"]
[Site "Swidnica"]
[Date "2025.04.10"]
[Round "6.11"]
[White "Adams, Mark"]
[Black "Stec, Czeslaw"]
[Result "1-0"]
[Annotator "NA"]
[ECO "B10"]
[WhiteElo "1916"]
[BlackElo "1820"]
[PlyCount "105"]
[EventDate "2025.04.05"]
[EventType "team-tourn"]
[EventCountry "POL"]
[SourceTitle "playchess.com"]
[Source "ChessBase"]
[SourceQuality "1"]
[WhiteTeam "Wales"]
[BlackTeam "Poland"]
[WhiteTeamCountry "WLS"]
[BlackTeamCountry "POL"]
[TimeControl "40/5400+30:1800+30"]

1. e4 {[%emt 0:00:08]} c6 {[%emt 0:00:08]} 2. Nf3 {[%emt 0:00:39]} d5 {[%emt 0:00:21]} 3. exd5 {[%emt 0:00:15]} cxd5 {[%emt 0:00:10]} 4. Ne5 {[%emt 0:00:20]} Nc6 {[%emt 0:00:22]} 5. d4 {[%emt 0:01:51]} e6 {[%emt 0:02:54]} 6. c3 {[%emt 0:01:28]} Bd6 {[%emt 0:00:58]} 7. f4 {[%emt 0:03:00]} Nf6 {[%emt 0:00:31]} 8. Bd3 {[%emt 0:00:25]} Qb6 {[%emt 0:00:59]} 9. Qe2 {[%emt 0:01:43]} g6 {[%emt 0:08:45]} 10. Nd2 {[%emt 0:05:29]} a5 {[%emt 0:01:37]} 11. Ndf3 {[%emt 0:02:54]} Bd7 {[%emt 0:03:25]} 12. O-O {[%emt 0:05:15]} Qc7 {[%emt 0:13:29]} 13. Bd2 {[%emt 0:13:54]} Nh5 {[%emt 0:03:44]} 14. g4 {[%emt 0:06:51]} Ng7 {[%emt 0:00:17]} 15. Rae1 {[%emt 0:07:34]} h5 {[%emt 0:00:39]} 16. h3 {[%emt 0:02:22]} hxg4 {[%emt 0:06:19]} 17. hxg4 {[%emt 0:00:18]} Be7 {[%emt 0:01:03]} 18. Ng5 {[%emt 0:06:19]} Bxg5 {[%emt 0:06:09]} 19. fxg5 {[%emt 0:02:05]} Nxe5 {[%emt 0:00:19]} 20. Bf4 {[%emt 0:01:04]} Qd8 {[%emt 0:16:41]} 21. Qxe5 {[%emt 0:03:58]} Rg8 {[%emt 0:03:55]} 22. Qf6 {[%emt 0:02:39]} Bc6 {[%emt 0:02:07]} 23. Be5 {[%emt 0:13:57]} Qe7 {[%emt 0:03:56]} 24. Bxg6 {[%emt 0:01:14]} Qxf6 {[%emt 0:04:01]} 25. gxf6 {[%emt 0:00:22]} Nf5 {[%emt 0:00:45]} 26. Bh5 {[%emt 0:04:28]} Nh6 {[%emt 0:03:40]} 27. Rf4 {[%emt 0:00:08]} O-O-O {[%emt 0:00:46]} 28. Kh2 {[%emt 0:01:27]} Rg5 {[%emt 0:04:05]} 29. Kh3 {[%emt 0:01:21]} Rdg8 {[%emt 0:00:34]} 30. Bd6 {[%emt 0:04:06]} Be8 {[%emt 0:01:49]} 31. Re5 {[%emt 0:01:28]} Kd7 {[%emt 0:02:23]} 32. Rxg5 {[%emt 0:01:21]} Rxg5 {[%emt 0:00:03]} 33. Bf8 {[%emt 0:00:18]} Nf5 {[%emt 0:00:43]} 34. Rf3 {[%emt 0:02:59]} Rg8 {[%emt 0:01:45]} 35. Ba3 {[%emt 0:01:00]} Nd6 {[%emt 0:00:34]} 36. Bxd6 {[%emt 0:00:09]} Kxd6 {[%emt 0:00:02]} 37. Kh4 {[%emt 0:00:11]} e5 {[%emt 0:02:26]} 38. dxe5+ {[%emt 0:01:02]} Kxe5 {[%emt 0:00:03]} 39. Rf5+ {[%emt 0:01:41]} Ke6 {[%emt 0:00:33]} 40. Rf2 {[%emt 0:00:00]} Bb5 {[%emt 0:00:00]} 41. g5 {[%emt 0:02:21]} Bd3 {[%emt 0:05:24]} 42. Rd2 {[%emt 0:02:35]} Be4 {[%emt 0:00:23]} 43. c4 {[%emt 0:08:23]} dxc4 {[%emt 0:04:20]} 44. Re2 {[%emt 0:00:45]} Kf5 {[%emt 0:00:45]} 45. Bxf7 {[%emt 0:06:48]} Rh8+ {[%emt 0:02:14]} 46. Kg3 {[%emt 0:00:16]} Bc6 {[%emt 0:05:00]} 47. Bxc4 {[%emt 0:01:59]} Kxg5 {[%emt 0:00:15]} 48. f7 {[%emt 0:00:04]} Rf8 {[%emt 0:03:18]} 49. Re5+ {[%emt 0:00:23]} Kf6 {[%emt 0:00:40]} 50. Rxa5 {[%emt 0:01:26]} b5 {[%emt 0:02:44]} 51. Bb3 {[%emt 0:00:33]} Ke7 {[%emt 0:00:20]} 52. Ra7+ {[%emt 0:00:24]} Kd6 {[%emt 0:01:03]} 53. Kh4 {[%emt 0:00:29]} 1-0

[Event "ESTCC-50 2025"]
[Site "Swidnica"]
[Date "2025.04.10"]
[Round "6.12"]
[White "Zaremba, Artur"]
[Black "Hughes, Anthony"]
[Result "1/2-1/2"]
[Annotator "ChessBase"]
[ECO "B13"]
[WhiteElo "2133"]
[BlackElo "1911"]
[PlyCount "112"]
[EventDate "2025.04.05"]
[EventType "team-tourn"]
[EventCountry "POL"]
[SourceTitle "playchess.com"]
[Source "ChessBase"]
[SourceQuality "1"]
[WhiteTeam "Poland"]
[BlackTeam "Wales"]
[WhiteTeamCountry "POL"]
[BlackTeamCountry "WLS"]
[TimeControl "40/5400+30:1800+30"]

1. e4 {[%emt 0:00:16]} c6 {[%emt 0:00:05]} 2. d4 {[%emt 0:00:17]} d5 {[%emt 0:00:06]} 3. exd5 {[%emt 0:00:52]} cxd5 {[%emt 0:00:06]} 4. Nf3 {[%emt 0:00:07]} Nc6 {[%emt 0:00:25]} 5. c3 {[%emt 0:01:31]} Nf6 {[%emt 0:01:29]} 6. Bd3 {[%emt 0:00:13]} Bg4 {[%emt 0:04:38]} 7. h3 {[%emt 0:00:47]} Bh5 {[%emt 0:04:50]} 8. O-O {[%emt 0:01:44]} e6 {[%emt 0:00:55]} 9. Re1 {[%emt 0:00:40]} Bd6 {[%emt 0:12:12]} 10. Nbd2 {[%emt 0:03:11]} Qc7 {[%emt 0:04:26]} 11. Nf1 {[%emt 0:00:16]} O-O {[%emt 0:20:17]} 12. Bg5 {[%emt 0:00:26]} Be7 {[%emt 0:03:13]} 13. Ng3 {[%emt 0:00:41]} Bg6 {[%emt 0:01:02]} 14. Bxg6 {[%emt 0:14:36]} hxg6 {[%emt 0:00:07]} 15. Ne5 {[%emt 0:00:46]} Nd7 {[%emt 0:21:18]} 16. Nxd7 {[%emt 0:05:52]} Qxd7 {[%emt 0:00:13]} 17. Qg4 {[%emt 0:00:12]} Bxg5 {[%emt 0:01:09]} 18. Qxg5 {[%emt 0:00:07]} Qe7 {[%emt 0:00:08]} 19. Qe3 {[%emt 0:00:55]} b5 {[%emt 0:01:26]} 20. a3 {[%emt 0:06:13]} Na5 {[%emt 0:01:07]} 21. f4 {[%emt 0:01:04]} Nc4 {[%emt 0:00:12]} 22. Qf2 {[%emt 0:00:10]} Qf6 {[%emt 0:00:47]} 23. Nf1 {[%emt 0:04:13]} Nd6 {[%emt 0:05:44]} 24. Nd2 {[%emt 0:00:55]} a5 {[%emt 0:00:54]} 25. Nb3 {[%emt 0:01:28]} Ne4 {[%emt 0:00:36]} 26. Qe3 {[%emt 0:00:22]} Rfc8 {[%emt 0:01:39]} 27. Nd2 {[%emt 0:01:05]} Nd6 {[%emt 0:04:44]} 28. Nf3 {[%emt 0:01:34]} Nc4 {[%emt 0:04:08]} 29. Qc1 {[%emt 0:01:03]} Rc7 {[%emt 0:03:49]} 30. a4 {[%emt 0:11:52]} b4 {[%emt 0:00:32]} 31. cxb4 {[%emt 0:00:32]} Rac8 {[%emt 0:00:34]} 32. b5 {[%emt 0:03:20]} Na3 {[%emt 0:00:09]} 33. Qd2 {[%emt 0:01:51]} Nc2 {[%emt 0:00:38]} 34. Qxa5 {[%emt 0:02:44]} Nxe1 {[%emt 0:00:14]} 35. Qxe1 {[%emt 0:00:20]} Qxf4 {[%emt 0:00:27]} 36. Qe5 {[%emt 0:12:01]} Rc1+ {[%emt 0:00:20]} 37. Rxc1 {[%emt 0:00:06]} Rxc1+ {[%emt 0:00:03]} 38. Kf2 {[%emt 0:00:10]} Rc2+ {[%emt 0:00:21]} 39. Kg1 {[%emt 0:00:07]} Rc1+ {[%emt 0:00:17]} 40. Kf2 {[%emt 0:00:00]} Rc2+ {[%emt 0:00:00]} 41. Kg1 {[%emt 0:00:16]} Qxe5 {[%emt 0:12:41]} 42. Nxe5 {[%emt 0:00:16]} Rxb2 {[%emt 0:00:04]} 43. Nc6 {[%emt 0:00:08]} Kf8 {[%emt 0:00:26]} 44. Kf1 {[%emt 0:01:17]} Ke8 {[%emt 0:00:09]} 45. Ke1 {[%emt 0:00:02]} Kd7 {[%emt 0:00:51]} 46. Kd1 {[%emt 0:00:36]} Kc7 {[%emt 0:00:42]} 47. Kc1 {[%emt 0:00:06]} Rxg2 {[%emt 0:00:55]} 48. a5 {[%emt 0:00:06]} Ra2 {[%emt 0:00:35]} 49. Kb1 {[%emt 0:00:11]} Ra3 {[%emt 0:01:52]} 50. Kb2 {[%emt 0:00:08]} Rxh3 {[%emt 0:00:23]} 51. Nb4 {[%emt 0:00:54]} g5 {[%emt 0:02:01]} 52. Na6+ {[%emt 0:00:11]} Kc8 {[%emt 0:05:42]} 53. Nc5 {[%emt 0:10:43]} Rh2+ {[%emt 0:07:24]} 54. Kb3 {[%emt 0:00:08]} Rh1 {[%emt 0:00:19]} 55. Kb2 {[%emt 0:00:01]} Rh2+ {[%emt 0:01:48]} 56. Kb3 {[%emt 0:01:45]} Rh1 {[%emt 0:00:09]} 1/2-1/2

[Event "ESTCC-50 2025"]
[Site "Swidnica"]
[Date "2025.04.10"]
[Round "6.13"]
[White "Bischoff, Klaus"]
[Black "Lalic, Susan K"]
[Result "1-0"]
[Annotator "RC"]
[ECO "D34"]
[WhiteElo "2425"]
[BlackElo "2227"]
[PlyCount "91"]
[EventDate "2025.04.05"]
[EventType "team-tourn"]
[EventCountry "POL"]
[SourceTitle "playchess.com"]
[Source "ChessBase"]
[SourceQuality "1"]
[WhiteTeam "Germany"]
[BlackTeam "England"]
[WhiteTeamCountry "GER"]
[BlackTeamCountry "ENG"]
[TimeControl "40/5400+30:1800+30"]

1. d4 {[%emt 0:00:11]} d5 {[%emt 0:00:19]} 2. c4 {[%emt 0:00:16]} e6 {[%emt 0:00:06]} 3. Nc3 {[%emt 0:00:19]} c5 {[%emt 0:00:36]} 4. cxd5 {[%emt 0:00:18]} exd5 {[%emt 0:00:03]} 5. Nf3 {[%emt 0:00:29]} Nc6 {[%emt 0:01:04]} 6. g3 {[%emt 0:00:42]} Nf6 {[%emt 0:01:52]} 7. Bg2 {[%emt 0:00:15]} Be7 {[%emt 0:01:25]} 8. O-O {[%emt 0:00:27]} O-O {[%emt 0:01:13]} 9. Be3 {[%emt 0:05:09]} c4 {[%emt 0:05:24]} 10. Ne5 {[%emt 0:03:09]} Bf5 {[%emt 0:13:33]} 11. h3 {[%emt 0:05:35]} h6 {[%emt 0:03:54]} 12. g4 {[%emt 0:03:20]} Bh7 {[%emt 0:03:54]} 13. f4 {[%emt 0:01:40]} Be4 {[%emt 0:10:37]} 14. Nxe4 {[%emt 0:02:08]} Nxe4 {[%emt 0:00:12]} 15. Nxc6 {[%emt 0:14:54]} bxc6 {[%emt 0:00:04]} 16. Bxe4 {[%emt 0:00:08]} dxe4 {[%emt 0:00:05]} 17. Qc2 {[%emt 0:00:04]} Qd5 {[%emt 0:06:03]} 18. Rfc1 {[%emt 0:00:34]} Rfb8 {[%emt 0:08:32]} 19. Rab1 {[%emt 0:00:31]} Rb4 {[%emt 0:01:39]} 20. Bd2 {[%emt 0:01:31]} Rb6 {[%emt 0:12:10]} 21. Qxc4 {[%emt 0:00:41]} Qd7 {[%emt 0:00:02]} 22. f5 {[%emt 0:05:20]} Rab8 {[%emt 0:03:49]} 23. b3 {[%emt 0:01:16]} Rb4 {[%emt 0:13:03]} 24. Bxb4 {[%emt 0:01:31]} Rxb4 {[%emt 0:01:00]} 25. Qc3 {[%emt 0:00:38]} Rxd4 {[%emt 0:00:03]} 26. Qe1 {[%emt 0:04:13]} Rd2 {[%emt 0:06:05]} 27. Rd1 {[%emt 0:01:00]} e3 {[%emt 0:00:03]} 28. Qf1 {[%emt 0:01:09]} Bh4 {[%emt 0:00:18]} 29. Rxd2 {[%emt 0:00:36]} Bf2+ {[%emt 0:03:18]} 30. Kh1 {[%emt 0:00:16]} exd2 {[%emt 0:00:08]} 31. Rd1 {[%emt 0:05:55]} Be1 {[%emt 0:02:08]} 32. Qf3 {[%emt 0:00:12]} Qd6 {[%emt 0:00:47]} 33. Kg2 {[%emt 0:00:39]} Qc5 {[%emt 0:00:15]} 34. Kf1 {[%emt 0:02:38]} Qc2 {[%emt 0:00:59]} 35. e4 {[%emt 0:01:11]} Qxa2 {[%emt 0:00:03]} 36. e5 {[%emt 0:00:39]} Qa6+ {[%emt 0:02:32]} 37. Kg2 {[%emt 0:01:09]} Qc8 {[%emt 0:00:28]} 38. Qe4 {[%emt 0:00:53]} Qb8 {[%emt 0:00:10]} 39. Qe3 {[%emt 0:02:46]} Kh7 {[%emt 0:00:52]} 40. e6 {[%emt 0:00:00]} Qe8 {[%emt 0:00:00]} 41. e7 {[%emt 0:03:46]} c5 {[%emt 0:01:45]} 42. Rxe1 {[%emt 0:02:00]} dxe1=Q {[%emt 0:00:07]} 43. Qxe1 {[%emt 0:00:08]} g5 {[%emt 0:02:05]} 44. Qe5 {[%emt 0:00:43]} h5 {[%emt 0:03:29]} 45. f6 {[%emt 0:00:28]} Kg6 {[%emt 0:00:52]} 46. h4 {[%emt 0:00:54]} 1-0

[Event "ESTCC-50 2025"]
[Site "Swidnica"]
[Date "2025.04.10"]
[Round "6.14"]
[White "Regan, Natasha K"]
[Black "Holzke, Frank"]
[Result "0-1"]
[Annotator "RC"]
[ECO "A04"]
[WhiteElo "2056"]
[BlackElo "2412"]
[PlyCount "98"]
[EventDate "2025.04.05"]
[EventType "team-tourn"]
[EventCountry "POL"]
[SourceTitle "playchess.com"]
[Source "ChessBase"]
[SourceQuality "1"]
[WhiteTeam "England"]
[BlackTeam "Germany"]
[WhiteTeamCountry "ENG"]
[BlackTeamCountry "GER"]
[TimeControl "40/5400+30:1800+30"]

1. Nf3 {[%emt 0:00:03]} g6 {[%emt 0:00:21]} 2. e4 {[%emt 0:02:15]} c5 {[%emt 0:00:27]} 3. h4 {[%emt 0:05:50]} d5 {[%emt 0:01:25]} 4. exd5 {[%emt 0:00:56]} Nf6 {[%emt 0:03:38]} 5. Bb5+ {[%emt 0:03:01]} Nbd7 {[%emt 0:05:09]} 6. c4 {[%emt 0:06:16]} Bg7 {[%emt 0:02:07]} 7. Nc3 {[%emt 0:06:38]} O-O {[%emt 0:00:50]} 8. Ba4 {[%emt 0:04:40]} Nb6 {[%emt 0:03:23]} 9. Bb3 {[%emt 0:02:04]} e6 {[%emt 0:01:04]} 10. dxe6 {[%emt 0:02:26]} Bxe6 {[%emt 0:00:44]} 11. O-O {[%emt 0:09:20]} Bxc4 {[%emt 0:08:03]} 12. Bxc4 {[%emt 0:00:40]} Nxc4 {[%emt 0:00:10]} 13. d3 {[%emt 0:02:07]} Nd6 {[%emt 0:02:51]} 14. d4 {[%emt 0:10:32]} cxd4 {[%emt 0:08:21]} 15. Nxd4 {[%emt 0:05:39]} Rc8 {[%emt 0:00:51]} 16. Qb3 {[%emt 0:08:02]} Nd7 {[%emt 0:31:20]} 17. Rd1 {[%emt 0:12:09]} Nc5 {[%emt 0:03:52]} 18. Qd5 {[%emt 0:01:36]} Nde4 {[%emt 0:02:49]} 19. Qxd8 {[%emt 0:06:30]} Rfxd8 {[%emt 0:00:14]} 20. Be3 {[%emt 0:06:20]} Nxc3 {[%emt 0:12:27]} 21. bxc3 {[%emt 0:00:06]} a6 {[%emt 0:00:13]} 22. Ne2 {[%emt 0:00:34]} Ne6 {[%emt 0:01:25]} 23. Rxd8+ {[%emt 0:00:24]} Rxd8 {[%emt 0:00:13]} 24. Rc1 {[%emt 0:00:38]} b5 {[%emt 0:01:45]} 25. c4 {[%emt 0:00:34]} b4 {[%emt 0:02:18]} 26. c5 {[%emt 0:00:13]} a5 {[%emt 0:00:18]} 27. Rc4 {[%emt 0:01:33]} Rd1+ {[%emt 0:03:19]} 28. Kh2 {[%emt 0:00:06]} Be5+ {[%emt 0:00:11]} 29. g3 {[%emt 0:00:34]} Kf8 {[%emt 0:00:51]} 30. c6 {[%emt 0:00:43]} Bc7 {[%emt 0:00:14]} 31. Kg2 {[%emt 0:01:18]} Ke7 {[%emt 0:00:34]} 32. Kf3 {[%emt 0:00:28]} Ra1 {[%emt 0:02:17]} 33. Rc2 {[%emt 0:00:59]} a4 {[%emt 0:00:58]} 34. Nd4 {[%emt 0:00:26]} Rb1 {[%emt 0:01:41]} 35. Nxe6 {[%emt 0:01:29]} Kxe6 {[%emt 0:00:20]} 36. Bc5 {[%emt 0:00:26]} b3 {[%emt 0:00:43]} 37. axb3 {[%emt 0:00:42]} axb3 {[%emt 0:00:04]} 38. Rd2 {[%emt 0:00:13]} Rc1 39. Ba3 {[%emt 0:00:56]} Rxc6 {[%emt 0:01:20]} 40. Bb2 {[%emt 0:00:00]} Rc2 {[%emt 0:00:00]} 41. Rxc2 {[%emt 0:06:27]} bxc2 {[%emt 0:01:04]} 42. Ke2 {[%emt 0:00:16]} Kf5 {[%emt 0:09:12]} 43. Kf3 {[%emt 0:04:14]} h5 {[%emt 0:01:03]} 44. Bc1 {[%emt 0:07:51]} Bd6 {[%emt 0:02:29]} 45. Bb2 {[%emt 0:08:10]} Bc5 {[%emt 0:00:18]} 46. Bc1 {[%emt 0:00:25]} Bb4 {[%emt 0:00:42]} 47. Kg2 {[%emt 0:02:12]} Ke4 {[%emt 0:00:20]} 48. f3+ {[%emt 0:00:25]} Kd3 {[%emt 0:00:19]} 49. g4 {[%emt 0:00:44]} Bd2 {[%emt 0:00:11]} 0-1

[Event "ESTCC-50 2025"]
[Site "Swidnica"]
[Date "2025.04.10"]
[Round "6.15"]
[White "Boensch, Uwe"]
[Black "Jackson, Sheila"]
[Result "1/2-1/2"]
[Annotator "RC"]
[ECO "D27"]
[WhiteElo "2465"]
[BlackElo "2031"]
[PlyCount "62"]
[EventDate "2025.04.05"]
[EventType "team-tourn"]
[EventCountry "POL"]
[SourceTitle "playchess.com"]
[Source "ChessBase"]
[SourceQuality "1"]
[WhiteTeam "Germany"]
[BlackTeam "England"]
[WhiteTeamCountry "GER"]
[BlackTeamCountry "ENG"]
[TimeControl "40/5400+30:1800+30"]

1. d4 {[%emt 0:00:07]} d5 {[%emt 0:00:07]} 2. c4 {[%emt 0:00:09]} dxc4 {[%emt 0:00:05]} 3. Nf3 {[%emt 0:00:12]} Nf6 {[%emt 0:00:32]} 4. e3 {[%emt 0:00:12]} e6 {[%emt 0:01:00]} 5. Bxc4 {[%emt 0:00:08]} c5 {[%emt 0:06:26]} 6. O-O {[%emt 0:00:16]} a6 {[%emt 0:00:38]} 7. Be2 {[%emt 0:03:18]} b6 {[%emt 0:02:11]} 8. Nbd2 {[%emt 0:09:43]} Bb7 {[%emt 0:03:36]} 9. dxc5 {[%emt 0:08:37]} Bxc5 {[%emt 0:00:43]} 10. a3 {[%emt 0:02:32]} O-O {[%emt 0:06:34]} 11. b4 {[%emt 0:00:12]} Be7 {[%emt 0:00:10]} 12. Bb2 {[%emt 0:01:29]} Nbd7 {[%emt 0:14:45]} 13. Qb1 {[%emt 0:00:41]} Rc8 {[%emt 0:05:27]} 14. e4 {[%emt 0:03:37]} Qc7 {[%emt 0:05:29]} 15. e5 {[%emt 0:07:33]} Nd5 {[%emt 0:01:45]} 16. Bd3 {[%emt 0:02:16]} h6 {[%emt 0:01:28]} 17. g3 {[%emt 0:09:47]} Nc3 {[%emt 0:13:01]} 18. Qe1 {[%emt 0:04:23]} Na4 {[%emt 0:00:27]} 19. Bd4 {[%emt 0:00:46]} Rfd8 {[%emt 0:01:00]} 20. Qe3 {[%emt 0:04:27]} b5 {[%emt 0:04:08]} 21. Ne4 {[%emt 0:00:49]} Bd5 {[%emt 0:01:51]} 22. h4 {[%emt 0:10:55]} Qb7 {[%emt 0:03:10]} 23. Nfd2 {[%emt 0:01:25]} Nab6 {[%emt 0:01:00]} 24. Rac1 {[%emt 0:08:17]} Nc4 {[%emt 0:01:26]} 25. Nxc4 {[%emt 0:00:17]} bxc4 {[%emt 0:00:50]} 26. Bc2 {[%emt 0:00:13]} a5 {[%emt 0:12:11]} 27. bxa5 {[%emt 0:01:04]} Ra8 {[%emt 0:03:24]} 28. Rb1 {[%emt 0:01:10]} Qc6 {[%emt 0:01:21]} 29. Nc3 {[%emt 0:03:08]} Rxa5 {[%emt 0:00:30]} 30. Nxd5 {[%emt 0:00:18]} exd5 {[%emt 0:00:22]} 31. a4 {[%emt 0:00:47]} Nc5 {[%emt 0:01:12]} 1/2-1/2

[Event "ESTCC-50 2025"]
[Site "Swidnica"]
[Date "2025.04.10"]
[Round "6.16"]
[White "Fink-Nunn, Petra"]
[Black "Tischbierek, Raj"]
[Result "0-1"]
[Annotator "RC"]
[ECO "B89"]
[WhiteElo "1997"]
[BlackElo "2418"]
[PlyCount "54"]
[EventDate "2025.04.05"]
[EventType "team-tourn"]
[EventCountry "POL"]
[SourceTitle "playchess.com"]
[Source "ChessBase"]
[SourceQuality "1"]
[WhiteTeam "England"]
[BlackTeam "Germany"]
[WhiteTeamCountry "ENG"]
[BlackTeamCountry "GER"]
[TimeControl "40/5400+30:1800+30"]

1. e4 {[%emt 0:00:04]} c5 {[%emt 0:00:29]} 2. Nf3 {[%emt 0:00:09]} d6 {[%emt 0:00:04]} 3. d4 {[%emt 0:00:16]} cxd4 {[%emt 0:00:07]} 4. Nxd4 {[%emt 0:00:06]} Nf6 {[%emt 0:00:04]} 5. Nc3 {[%emt 0:00:08]} Nc6 {[%emt 0:00:05]} 6. Bc4 {[%emt 0:00:21]} e6 {[%emt 0:00:14]} 7. Be3 {[%emt 0:00:26]} Bd7 {[%emt 0:00:11]} 8. Qe2 {[%emt 0:00:32]} Rc8 {[%emt 0:00:28]} 9. Bb3 {[%emt 0:00:22]} Na5 {[%emt 0:05:33]} 10. O-O-O {[%emt 0:06:05]} Rxc3 {[%emt 0:01:27]} 11. bxc3 {[%emt 0:00:14]} Nxe4 {[%emt 0:00:29]} 12. Qe1 {[%emt 0:30:52]} Qc7 {[%emt 0:19:29]} 13. Kb2 {[%emt 0:10:12]} d5 {[%emt 0:04:14]} 14. f3 {[%emt 0:02:49]} Nxc3 {[%emt 0:03:11]} 15. Rd3 {[%emt 0:08:43]} Na4+ {[%emt 0:02:27]} 16. Ka1 {[%emt 0:07:54]} Be7 {[%emt 0:11:56]} 17. Bd2 {[%emt 0:06:03]} Nc4 {[%emt 0:05:21]} 18. Bxa4 {[%emt 0:01:41]} Bxa4 {[%emt 0:00:27]} 19. Bc3 {[%emt 0:01:45]} O-O {[%emt 0:02:30]} 20. Nb3 {[%emt 0:09:55]} Rc8 {[%emt 0:05:16]} 21. Qg3 {[%emt 0:01:21]} Qxg3 {[%emt 0:01:10]} 22. hxg3 {[%emt 0:00:01]} Na3 {[%emt 0:01:34]} 23. Kb2 {[%emt 0:01:57]} Bb5 {[%emt 0:01:55]} 24. Rdd1 {[%emt 0:01:46]} Nc4+ {[%emt 0:00:20]} 25. Kb1 {[%emt 0:05:20]} Ne3 {[%emt 0:00:51]} 26. Bd4 {[%emt 0:00:14]} Nxd1 {[%emt 0:00:29]} 27. Rxd1 {[%emt 0:00:03]} b6 {[%emt 0:00:47]} 0-1